Workbook

Sheet 0001
A4: =INT(RAND()*98)+1 -> 10 | C4: =AVERAGE(D$4:$D4) -> 10 | D4: =A4 -> 10 | E4: =(D4+C4)/D4 -> 2 | G4: =D4 -> 10 | H4: =AVERAGE(E4,N4) ->  | J4: =(SUM(INDEX(D:D,MIN(4,ROW()-2)):INDEX(D:D,ROW()))+AVERAGE(INDEX(D:D,MIN(4,ROW()-2)):INDEX(D:D,ROW())))/D4 -> 2 | K4: =(#REF!+#REF!+D4+AVERAGE(#REF!))/#REF! ->  | L4: =(#REF!+D4+AVERAGE(D4:D4))/D4 ->  | N4: =MIN(D4,J4,L4) ->  | Q4: =IF(J4<AVERAGE($J$4:J4),J4,"") ->  | R4: =IF(Q4<=AVERAGE($Q$4:Q4),J4,"") -> 
A5: 66 | C5: =AVERAGE(D$4:$D5) -> 38 | D5: 66 | E5: 1.575757576 | G5: 66 | H5: =AVERAGE(E5,N5) -> 1.651515152 | J5: =(SUM(INDEX(D:D,MIN(4,ROW()-2)):INDEX(D:D,ROW()))+AVERAGE(INDEX(D:D,MIN(4,ROW()-2)):INDEX(D:D,ROW())))/D5 -> 1.727272727 | K5: =(#REF!+D4+D5+AVERAGE(D4:D4))/D4 ->  | L5: =(D4+D5+AVERAGE(D4:D5))/D5 -> 1.727272727 | N5: 1.727272727 | Q5: =IF(J5<AVERAGE($J$4:J5),J5,"") -> 1.727272727 | R5: =IF(Q5<=AVERAGE($Q$4:Q5),J5,"") -> 1.727272727
A6: 16 | C6: =AVERAGE(D$4:$D6) -> 30.66666667 | D6: 16 | E6: 2.916666667 | G6: 16 | H6: 5.291666667 | J6: =(SUM(INDEX(D:D,MIN(4,ROW()-2)):INDEX(D:D,ROW()))+AVERAGE(INDEX(D:D,MIN(4,ROW()-2)):INDEX(D:D,ROW())))/D6 -> 7.666666667 | K6: =(D4+D5+D6+AVERAGE(D4:D5))/D5 -> 1.96969697 | L6: 7.6875 | N6: 7.666666667 | Q6: =IF(J6<AVERAGE($J$4:J6),J6,"") ->  | R6: =IF(Q6<=AVERAGE($Q$4:Q6),J6,"") -> 
A7: 6 | C7: =AVERAGE(D$4:$D7) -> 24.5 | D7: 6 | E7: 5.083333333 | G7: 6 | H7: 5.291666667 | J7: =(SUM(INDEX(D:D,MIN(4,ROW()-2)):INDEX(D:D,ROW()))+AVERAGE(INDEX(D:D,MIN(4,ROW()-2)):INDEX(D:D,ROW())))/D7 -> 20.41666667 | K7: 8.0625 | L7: 5.5 | N7: 5.5 | Q7: =IF(J7<AVERAGE($J$4:J7),J7,"") ->  | R7: =IF(Q7<=AVERAGE($Q$4:Q7),J7,"") -> 
A8: 16 | C8: =AVERAGE(D$4:$D8) -> 22.8 | D8: =A8 -> 16 | E8: =(D8+C8)/D8 -> 2.425 | G8: =D8 -> 16 | H8: =AVERAGE(E8,N8) -> 2.24375 | J8: =(SUM(INDEX(D:D,MIN(4,ROW()-2)):INDEX(D:D,ROW()))+AVERAGE(INDEX(D:D,MIN(4,ROW()-2)):INDEX(D:D,ROW())))/D8 -> 8.55 | K8: =(D6+D7+D8+AVERAGE(D6:D7))/D7 -> 8.166666667 | L8: =(D7+D8+AVERAGE(D7:D8))/D8 -> 2.0625 | N8: =MIN(D8,J8,L8) -> 2.0625 | Q8: =IF(J8<AVERAGE($J$4:J8),J8,"") ->  | R8: =IF(Q8<=AVERAGE($Q$4:Q8),J8,"") -> 
A9: 34 | C9: =AVERAGE(D$4:$D10) -> 30.71428571 | D9: 34 | E9: 1.903361345 | G9: 34 | H9: 2.054621849 | J9: =(SUM(INDEX(D:D,MIN(4,ROW()-2)):INDEX(D:D,ROW()))+AVERAGE(INDEX(D:D,MIN(4,ROW()-2)):INDEX(D:D,ROW())))/D9 -> 5.078431373 | K9: 4.1875 | L9: 2.205882353 | N9: 2.205882353 | Q9: =IF(J9<AVERAGE($J$4:J9),J9,"") -> 5.078431373 | R9: =IF(Q9<=AVERAGE($Q$4:Q9),J9,"") -> 
A10: 67 | C10: =AVERAGE(D$4:$D10) -> 30.71428571 | D10: 67 | E10: 1.458422175 | G10: 67 | H10: 1.859808102 | J10: =(SUM(INDEX(D:D,MIN(4,ROW()-2)):INDEX(D:D,ROW()))+AVERAGE(INDEX(D:D,MIN(4,ROW()-2)):INDEX(D:D,ROW())))/D10 -> 3.667377399 | K10: 4.176470588 | L10: 2.26119403 | N10: 2.26119403 | Q10: =IF(J10<AVERAGE($J$4:J10),J10,"") -> 3.667377399 | R10: =IF(Q10<=AVERAGE($Q$4:Q10),J10,"") -> 
A11: 67 | C11: =AVERAGE(D$4:$D13) -> 38.1 | D11: 67 | E11: 1.568656716 | G11: 67 | H11: 2.284328358 | J11: =(SUM(INDEX(D:D,MIN(4,ROW()-2)):INDEX(D:D,ROW()))+AVERAGE(INDEX(D:D,MIN(4,ROW()-2)):INDEX(D:D,ROW())))/D11 -> 4.735074627 | K11: 3.26119403 | L11: 3 | N11: 3 | Q11: =IF(J11<AVERAGE($J$4:J11),J11,"") -> 4.735074627 | R11: =IF(Q11<=AVERAGE($Q$4:Q11),J11,"") -> 
A12: 20 | C12: =AVERAGE(D$4:$D12) -> 33.55555556 | D12: 20 | E12: 2.677777778 | G12: 20 | H12: 4.601388889 | J12: =(SUM(INDEX(D:D,MIN(4,ROW()-2)):INDEX(D:D,ROW()))+AVERAGE(INDEX(D:D,MIN(4,ROW()-2)):INDEX(D:D,ROW())))/D12 -> 16.77777778 | K12: 3.298507463 | L12: 6.525 | N12: 6.525 | Q12: =IF(J12<AVERAGE($J$4:J12),J12,"") ->  | R12: =IF(Q12<=AVERAGE($Q$4:Q12),J12,"") -> 
A13: 79 | C13: =AVERAGE(D$4:$D15) -> 39.5 | D13: 79 | E13: 1.5 | G13: 79 | H13: 1.689873418 | J13: =(SUM(INDEX(D:D,MIN(4,ROW()-2)):INDEX(D:D,ROW()))+AVERAGE(INDEX(D:D,MIN(4,ROW()-2)):INDEX(D:D,ROW())))/D13 -> 5.305063291 | K13: 10.475 | L13: 1.879746835 | N13: 1.879746835 | Q13: =IF(J13<AVERAGE($J$4:J13),J13,"") -> 5.305063291 | R13: =IF(Q13<=AVERAGE($Q$4:Q13),J13,"") -> 
A14: 39 | C14: =AVERAGE(D$4:$D16) -> 36.92307692 | D14: 39 | E14: 1.946745562 | G14: 39 | H14: 3.24260355 | J14: =(SUM(INDEX(D:D,MIN(4,ROW()-2)):INDEX(D:D,ROW()))+AVERAGE(INDEX(D:D,MIN(4,ROW()-2)):INDEX(D:D,ROW())))/D14 -> 11.74825175 | K14: 2.373417722 | L14: 4.538461538 | N14: 4.538461538 | Q14: =IF(J14<AVERAGE($J$4:J14),J14,"") ->  | R14: =IF(Q14<=AVERAGE($Q$4:Q14),J14,"") -> 
A15: 54 | C15: =AVERAGE(D$4:$D15) -> 39.5 | D15: 54 | E15: 1.731481481 | G15: 54 | H15: 2.157407407 | J15: =(SUM(INDEX(D:D,MIN(4,ROW()-2)):INDEX(D:D,ROW()))+AVERAGE(INDEX(D:D,MIN(4,ROW()-2)):INDEX(D:D,ROW())))/D15 -> 9.509259259 | K15: 5.923076923 | L15: 2.583333333 | N15: 2.583333333 | Q15: =IF(J15<AVERAGE($J$4:J15),J15,"") ->  | R15: =IF(Q15<=AVERAGE($Q$4:Q15),J15,"") -> 
A16: 6 | C16: =AVERAGE(D$4:$D17) -> 36.28571429 | D16: 6 | E16: 7.047619048 | G16: 6 | H16: 6.523809524 | J16: =(SUM(INDEX(D:D,MIN(4,ROW()-2)):INDEX(D:D,ROW()))+AVERAGE(INDEX(D:D,MIN(4,ROW()-2)):INDEX(D:D,ROW())))/D16 -> 86.15384615 | K16: 2.694444444 | L16: 15 | N16: 6 | Q16: =IF(J16<AVERAGE($J$4:J16),J16,"") ->  | R16: =IF(Q16<=AVERAGE($Q$4:Q16),J16,"") -> 
A17: 28 | C17: =AVERAGE(D$4:$D19) -> 42.0625 | D17: 28 | E17: 2.502232143 | G17: 28 | H17: 2.161830357 | J17: =(SUM(INDEX(D:D,MIN(4,ROW()-2)):INDEX(D:D,ROW()))+AVERAGE(INDEX(D:D,MIN(4,ROW()-2)):INDEX(D:D,ROW())))/D17 -> 19.43877551 | K17: 19.66666667 | L17: 1.821428571 | N17: 1.821428571 | Q17: =IF(J17<AVERAGE($J$4:J17),J17,"") ->  | R17: =IF(Q17<=AVERAGE($Q$5:Q17),J17,"") -> 
A18: 98 | C18: =AVERAGE(D$4:$D18) -> 40.4 | D18: 98 | E18: 1.412244898 | G18: 98 | H18: 1.670408163 | J18: =(SUM(INDEX(D:D,MIN(4,ROW()-2)):INDEX(D:D,ROW()))+AVERAGE(INDEX(D:D,MIN(4,ROW()-2)):INDEX(D:D,ROW())))/D18 -> 6.595918367 | K18: 5.321428571 | L18: 1.928571429 | N18: 1.928571429 | Q18: =IF(J18<AVERAGE($J$4:J18),J18,"") -> 6.595918367 | R18: =IF(Q18<=AVERAGE($Q$6:Q18),J18,"") -> 
A19: 67 | C19: =AVERAGE(D$4:$D19) -> 42.0625 | D19: =A19 -> 67 | E19: =(D19+C19)/D19 -> 1.627798507 | G19: =D19 -> 67 | H19: =AVERAGE(E19,N19) -> 2.660914179 | J19: =(SUM(INDEX(D:D,MIN(4,ROW()-2)):INDEX(D:D,ROW()))+AVERAGE(INDEX(D:D,MIN(4,ROW()-2)):INDEX(D:D,ROW())))/D19 -> 10.67257463 | K19: =(D17+D18+D19+AVERAGE(D17:D18))/D18 -> 2.612244898 | L19: =(D18+D19+AVERAGE(D18:D19))/D19 -> 3.694029851 | N19: =MIN(D19,J19,L19) -> 3.694029851 | Q19: =IF(J19<AVERAGE($J$5:J19),J19,"") -> 10.67257463 | R19: =IF(Q19<=AVERAGE($Q$7:Q19),J19,"") -> 
